fUSD/lending_fUSD_20251029
["ID","MTS","AMOUNT","RATE_DAILY","PERIOD"]
[392613035,1761745845022,-151.0,0.00018533,2]
[392613037,1761745845034,-151.0,0.00018533,2]
[392613039,1761745845043,-151.0,0.00018533,2]
[392613041,1761745845052,-151.0,0.00018533,2]
[392613043,1761745845062,-151.0,0.00018533,2]
[392613045,1761745845071,-151.0,0.00018533,2]
[392613047,1761745845081,-154.172899,0.00018533,2]
[392613049,1761745845090,-256.170223,0.00018533,2]
[392613051,1761745845099,-151.0,0.00018533,2]
[392613053,1761745845108,-256.170223,0.00018533,2]
[392613054,1761745845118,-256.170223,0.00018533,2]
[392613056,1761745845128,-256.170223,0.00018533,2]
[392613058,1761745845137,-154.753346,0.00018533,2]
[392613060,1761745845147,-157.218322,0.00018533,2]
[392613062,1761745845156,-151.0,0.00018533,2]
[392613065,1761745845165,-250.08768,0.00018533,2]
[392613067,1761745845175,-250.08768,0.00018533,2]
[392613069,1761745845185,-151.0,0.00018533,2]
[392613086,1761745845334,-151.0,0.00018533,2]
[392613088,1761745845343,-250.08768,0.00018533,2]
[392613090,1761745845352,-151.0,0.00018533,2]
[392613092,1761745845361,-250.08768,0.00018533,2]
[392613094,1761745845370,-151.0,0.00018533,2]
[392613096,1761745845380,-304.0,0.00018544,2]
[392613098,1761745845389,-176.03,0.00018556,2]
[392613100,1761745845398,-290.0,0.00018584,2]
[392613102,1761745845407,-404.41,0.0001876,2]
[392613104,1761745845417,-267.06,0.0001879,2]
[392613106,1761745845426,-151.0,0.000188,2]
[392613108,1761745845435,-151.0,0.000188,2]
[392613110,1761745845445,-151.0,0.000188,2]
[392613112,1761745845453,-151.0,0.000188,2]
[392613114,1761745845463,-300.953983,0.000188,2]
[392613116,1761745845472,-150.34,0.000188,2]
[392613118,1761745845481,-150.34,0.000188,2]
[392613120,1761745845491,-150.34,0.000188,2]
[392613122,1761745845499,-150.34,0.000188,2]
[392613124,1761745845509,-150.34,0.000188,2]
[392613126,1761745845517,-150.34,0.000188,2]
[392613128,1761745845526,-150.34,0.000188,2]
[392613130,1761745845536,-150.34,0.000188,2]
[392613132,1761745845544,-150.34,0.000188,2]
[392613134,1761745845553,-150.34,0.000188,2]
[392613136,1761745845562,-150.34,0.000188,2]
[392613138,1761745845571,-150.34,0.000188,2]
[392613140,1761745845580,-150.34,0.000188,2]
[392613142,1761745845589,-150.34,0.000188,2]
[392613144,1761745845601,-150.34,0.000188,2]
[392613146,1761745845610,-150.34,0.000188,2]
[392613148,1761745845619,-150.34,0.000188,2]
[392613150,1761745845629,-150.34,0.000188,2]
[392613152,1761745845638,-150.34,0.000188,2]
[392613154,1761745845649,-150.34,0.000188,2]
[392613156,1761745845659,-150.34,0.000188,2]
[392613158,1761745845668,-150.34,0.000188,2]
[392613160,1761745845677,-150.34,0.000188,2]
[392613162,1761745845686,-150.34,0.000188,2]
[392613164,1761745845695,-150.34,0.000188,2]
[392613166,1761745845705,-150.34,0.000188,2]
[392613168,1761745845715,-150.34,0.000188,2]
[392613170,1761745845724,-981.26475147,0.00018804,2]
[392613172,1761745845733,-400.0,0.00018854,2]
[392613174,1761745845742,-245.59695397,0.00019,2]
[392613176,1761745845752,-300.0,0.00019,2]
[392613178,1761745845761,-22935.19863228,0.00019,2]
[392613180,1761745845770,-199.93417516,0.00019,2]
[392613182,1761745845780,-2324.0,0.00019003,2]
[392613184,1761745845789,-400.0,0.00019019,2]
[392613186,1761745845799,-169.48,0.00019131,2]
[392613188,1761745845807,-151.0,0.00019178,2]
[392613190,1761745845817,-150.0,0.00019215,2]
[392613192,1761745845826,-150.0,0.00019215,2]
[392613194,1761745845835,-150.0,0.00019215,2]
[392613196,1761745845844,-150.0,0.00019215,2]
[392613198,1761745845853,-150.0,0.00019215,2]
[392613200,1761745845863,-150.0,0.00019215,2]
[392613203,1761745845873,-150.0,0.00019215,2]
[392613205,1761745845882,-150.0,0.00019215,2]
[392613207,1761745845891,-162.69,0.00019302,2]
[392613209,1761745845902,-177.0,0.00019315,2]
[392613211,1761745845911,-1000.0,0.00019338,2]
[392613213,1761745845920,-500.0,0.0001942,2]
[392613215,1761745845929,-500.0,0.0001942,2]
[392613217,1761745845938,-404.41,0.00019438,2]
[392613218,1761745845947,-354.0,0.00019469,2]
[392613220,1761745845956,-500.00149131,0.00019483,2]
[392613223,1761745845966,-526.40805025,0.00019483,2]
[392613224,1761745845975,-500.0,0.00019483,2]
[392613227,1761745845984,-566.88473057,0.00019483,2]
[392613228,1761745845993,-503.18768518,0.00019483,2]
[392613230,1761745846002,-160.49222033,0.00019483,2]
[392613233,1761745846012,-160.44742874,0.00019483,2]
[392613235,1761745846022,-160.50044525,0.00019483,2]
[392613236,1761745846034,-160.50312324,0.00019483,2]
[392613238,1761745846046,-500.0,0.00019483,2]
[392613241,1761745846055,-509.72421074,0.00019483,2]
[392613243,1761745846065,-500.0,0.00019483,2]
[392613244,1761745846075,-500.0,0.00019483,2]
[392613246,1761745846085,-502.3506305,0.00019483,2]
[392613248,1761745846094,-500.0,0.00019483,2]
[392613251,1761745846104,-373.44070478,0.00019483,2]
[392613253,1761745846116,-1000.0,0.00019541,2]
[392613255,1761745846125,-354.0,0.00019573,2]
[392613257,1761745846134,-41297.66101944,0.00019595,2]
[392613259,1761745846143,-275.06678268,0.00019668,2]
[392613261,1761745846153,-1425.0,0.00019689,2]
[392613262,1761745846162,-1000.0,0.00019691,2]
[392613264,1761745846172,-2000.0,0.000197,2]
[392613266,1761745846181,-5310.25750872,0.000197,2]
[392613268,1761745846190,-151.0,0.000197,7]
[392613270,1761745846199,-250.08768,0.000197,7]
[392613272,1761745846208,-250.08768,0.000197,7]
[392613274,1761745846217,-151.0,0.000197,7]
[392613276,1761745846226,-151.0,0.000197,7]
[392613278,1761745846235,-250.08768,0.000197,7]
[392613280,1761745846244,-151.0,0.000197,7]
[392613282,1761745846253,-250.08768,0.000197,7]
[392613284,1761745846262,-151.0,0.000197,7]
[392613286,1761745846271,-1000.0,0.0001973,2]
[392613288,1761745846280,-354.0,0.00019753,2]
[392613290,1761745846289,-150.0,0.00019754,2]
[392613292,1761745846298,-354.0,0.00019759,2]
[392613294,1761745846308,-111907.90594883,0.0001976,2]
[392613296,1761745846318,-151.0,0.0001976,7]
[392613298,1761745846326,-151.0,0.0001976,7]
[392613300,1761745846336,-151.0,0.0001976,7]
[392613303,1761745846346,-151.0,0.0001976,7]
[392613305,1761745846355,-151.0,0.0001976,7]
[392613307,1761745846365,-211.896066,0.0001976,7]
[392613309,1761745846374,-211.896066,0.0001976,7]
[392613311,1761745846383,-211.896066,0.0001976,7]
[392613312,1761745846392,-151.0,0.0001976,7]
[392613315,1761745846402,-343.282875,0.0001976,7]
[392613317,1761745846412,-151.0,0.0001976,7]
[392613319,1761745846421,-343.282875,0.0001976,7]
[392613320,1761745846430,-211.896066,0.0001976,7]
[392613322,1761745846440,-153.156967,0.0001976,7]
[392613324,1761745846449,-343.282875,0.0001976,7]
[392613326,1761745846458,-343.282875,0.0001976,7]
[392613328,1761745846467,-151.0,0.0001976,7]
[392613330,1761745846476,-151.0,0.0001976,7]
[392613332,1761745846485,-151.0,0.0001976,7]
[392613334,1761745846495,-151.0,0.0001976,7]
[392613336,1761745846504,-199.492645,0.0001976,7]
[392613338,1761745846513,-199.492645,0.0001976,7]
[392613340,1761745846522,-199.492645,0.0001976,7]
[392613342,1761745846532,-199.492645,0.0001976,7]
[392613344,1761745846541,-151.0,0.0001976,7]
[392613346,1761745846550,-151.0,0.0001976,7]
[392613348,1761745846559,-151.0,0.0001976,7]
[392613350,1761745846568,-151.0,0.0001976,7]
[392613352,1761745846578,-153.035891,0.0001976,7]
[392613354,1761745846587,-151.0,0.0001976,7]
[392613356,1761745846597,-151.0,0.0001976,7]
[392613358,1761745846606,-151.0,0.0001976,7]
[392613360,1761745846616,-151.0,0.0001976,7]
[392613362,1761745846625,-151.0,0.0001976,7]
[392613364,1761745846635,-256.170223,0.0001976,7]
[392613366,1761745846645,-256.170223,0.0001976,7]
[392613368,1761745846656,-256.170223,0.0001976,7]
[392613369,1761745846665,-256.170223,0.0001976,7]
[392613370,1761745846675,-151.0,0.0001976,7]
[392613371,1761745846684,-250.08768,0.0001976,7]
[392613372,1761745846694,-250.08768,0.0001976,7]
[392613373,1761745846703,-214.803469,0.0001976,7]
[392613374,1761745846713,-151.0,0.0001976,7]
[392613375,1761745846723,-250.08768,0.0001976,7]
[392613376,1761745846733,-151.0,0.0001976,7]
[392613377,1761745846743,-503.7376728,0.000198,2]
[392613378,1761745846753,-3631.01,0.00019809,2]
[392613379,1761745846762,-187.47564,0.0001981,7]
[392613380,1761745846772,-154.311507,0.0001981,7]
[392613381,1761745846781,-151.0,0.0001981,7]
[392613382,1761745846791,-151.0,0.0001981,7]
[392613383,1761745846800,-151.0,0.0001981,7]
[392613384,1761745846810,-151.0,0.0001981,7]
[392613385,1761745846819,-151.0,0.0001981,7]
[392613386,1761745846829,-286.00418,0.0001981,7]
[392613387,1761745846838,-156.179836,0.0001981,7]
[392613388,1761745846847,-151.0,0.0001981,7]
[392613389,1761745846858,-151.0,0.0001981,7]
[392613390,1761745846867,-166.425213,0.0001981,7]
[392613391,1761745846876,-151.0,0.0001981,7]
[392613392,1761745846886,-151.0,0.0001981,7]
[392613393,1761745846896,-156.284587,0.0001981,7]
[392613395,1761745846907,-151.0,0.0001981,7]
[392613397,1761745846916,-159.344393,0.0001981,7]
[392613399,1761745846926,-151.0,0.0001981,7]
[392613401,1761745846935,-151.0,0.0001981,7]
[392613403,1761745846944,-151.0,0.0001981,7]
[392613405,1761745846954,-151.0,0.0001981,7]
[392613407,1761745846963,-151.0,0.0001981,7]
[392613409,1761745846972,-151.0,0.0001981,7]
[392613411,1761745846981,-151.0,0.0001981,7]
[392613413,1761745846991,-151.0,0.0001981,7]
[392613415,1761745847000,-151.0,0.0001981,7]
[392613417,1761745847009,-151.0,0.0001981,7]
[392613419,1761745847018,-161.475901,0.0001981,7]
[392613421,1761745847027,-151.0,0.0001981,7]
[392613423,1761745847040,-151.0,0.0001981,7]
[392613425,1761745847049,-151.0,0.0001981,7]
[392613427,1761745847058,-151.0,0.0001981,7]
[392613429,1761745847067,-151.0,0.0001981,7]
[392613431,1761745847077,-151.0,0.0001981,7]
[392613433,1761745847086,-151.0,0.0001981,7]
[392613435,1761745847095,-151.0,0.0001981,7]
[392613437,1761745847104,-151.0,0.0001981,7]
[392613439,1761745847113,-151.0,0.0001981,7]
[392613441,1761745847121,-159.92614,0.0001981,7]
[392613443,1761745847130,-151.0,0.0001981,7]
[392613445,1761745847139,-151.0,0.0001981,7]
[392613447,1761745847148,-152.520189,0.0001981,7]
[392613449,1761745847159,-151.0,0.0001981,7]
[392613451,1761745847168,-151.0,0.0001981,7]
[392613453,1761745847178,-151.0,0.0001981,7]
[392613455,1761745847187,-151.0,0.0001981,7]
[392613457,1761745847196,-288.041798,0.0001981,7]
[392613459,1761745847205,-288.041798,0.0001981,7]
[392613461,1761745847214,-1343.527261,0.0001981,7]
[392613463,1761745847223,-1343.527261,0.0001981,7]
[392613465,1761745847232,-151.0,0.0001981,7]
[392613467,1761745847241,-1343.527261,0.0001981,7]
[392613469,1761745847251,-1343.527261,0.0001981,7]
[392613471,1761745847260,-151.0,0.0001981,7]
[392613473,1761745847269,-151.0,0.0001981,7]
[392613475,1761745847277,-151.0,0.0001981,7]
[392613477,1761745847286,-186.219177,0.0001981,7]
[392613479,1761745847295,-151.0,0.0001981,7]
[392613481,1761745847304,-151.0,0.0001981,7]
[392613483,1761745847312,-186.219177,0.0001981,7]
[392613485,1761745847322,-186.219177,0.0001981,7]
[392613487,1761745847330,-151.0,0.0001981,7]
[392613489,1761745847339,-186.219177,0.0001981,7]
[392613491,1761745847348,-151.0,0.0001981,7]
[392613493,1761745847358,-151.0,0.0001981,7]
[392613495,1761745847367,-151.0,0.0001981,7]
[392613497,1761745847376,-354.0,0.00019856,2]
[392613499,1761745847385,-66838.97638788,0.0001988,2]
[392613501,1761745847394,-151.0,0.0001988,7]
[392613503,1761745847403,-154.194433,0.0001988,7]
[392613505,1761745847412,-151.0,0.0001988,7]
[392613507,1761745847421,-221.13942,0.0001988,7]
[392613509,1761745847430,-151.0,0.0001988,7]
[392613511,1761745847439,-151.0,0.0001988,7]
[392613513,1761745847448,-151.0,0.0001988,7]
[392613515,1761745847457,-151.0,0.0001988,7]
[392613517,1761745847466,-151.0,0.0001988,7]
[392613519,1761745847475,-282.679329,0.0001988,7]
[392613521,1761745847484,-151.0,0.0001988,7]
[392613523,1761745847493,-151.0,0.0001988,7]
[392613525,1761745847502,-151.0,0.0001988,7]
[392613527,1761745847511,-151.0,0.0001988,7]
[392613529,1761745847520,-151.0,0.0001988,7]
[392613531,1761745847529,-208.160694,0.0001988,7]
[392613533,1761745847538,-151.0,0.0001988,7]
[392613547,1761745847673,-151.0,0.0001988,7]
[392613550,1761745847683,-151.0,0.0001988,7]
[392613552,1761745847692,-178.399373,0.0001988,7]
[392613553,1761745847702,-151.0,0.0001988,7]
[392613556,1761745847711,-151.0,0.0001988,7]
[392613558,1761745847720,-151.000008,0.0001988,7]
[392613560,1761745847730,-151.0,0.0001988,7]
[392613562,1761745847739,-151.0,0.0001988,7]
[392613563,1761745847748,-256.125814,0.0001988,7]
[392613566,1761745847758,-151.0,0.0001988,7]
[392613568,1761745847767,-151.0,0.0001988,7]
[392613570,1761745847777,-151.0,0.0001988,7]
[392613571,1761745847786,-151.0,0.0001988,7]
[392613573,1761745847796,-151.0,0.0001988,7]
[392613576,1761745847805,-288.041798,0.0001988,7]
[392613577,1761745847814,-288.041798,0.0001988,7]
[392613580,1761745847823,-1343.527261,0.0001988,7]
[392613581,1761745847832,-1343.527261,0.0001988,7]
[392613584,1761745847841,-151.0,0.0001988,7]
[392613585,1761745847851,-1343.527261,0.0001988,7]
[392613587,1761745847859,-1343.527261,0.0001988,7]
[392613589,1761745847868,-151.0,0.0001988,7]
[392613591,1761745847877,-151.0,0.0001988,7]
[392613594,1761745847887,-271.846906,0.0001988,7]
[392613595,1761745847896,-166.571214,0.0001988,7]
[392613598,1761745847906,-151.0,0.0001988,7]
[392613599,1761745847915,-151.0,0.0001988,7]
[392613602,1761745847924,-151.0,0.0001988,7]
[392613603,1761745847933,-211.896066,0.0001988,7]
[392613605,1761745847943,-211.896066,0.0001988,7]
[392613608,1761745847952,-211.896066,0.0001988,7]
[392613610,1761745847963,-151.0,0.0001988,7]
[392613612,1761745847973,-343.282875,0.0001988,7]
[392613614,1761745847981,-151.0,0.0001988,7]
[392613616,1761745847990,-343.282875,0.0001988,7]
[392613618,1761745847999,-211.896066,0.0001988,7]
[392613620,1761745848009,-343.282875,0.0001988,7]
[392613622,1761745848018,-343.282875,0.0001988,7]
[392613624,1761745848028,-165.642307,0.0001988,7]
[392613626,1761745848043,-151.0,0.0001988,7]
[392613628,1761745848052,-151.0,0.0001988,7]
[392613630,1761745848061,-151.0,0.0001988,7]
[392613632,1761745848071,-199.492645,0.0001988,7]
[392613634,1761745848082,-199.492645,0.0001988,7]
[392613636,1761745848092,-199.492645,0.0001988,7]
[392613638,1761745848102,-199.492645,0.0001988,7]
[392613640,1761745848112,-151.0,0.0001988,7]
[392613642,1761745848121,-151.0,0.0001988,7]
[392613644,1761745848131,-151.0,0.0001988,7]
[392613646,1761745848140,-195.181761,0.0001988,7]
[392613647,1761745848149,-151.0,0.0001988,7]
[392613648,1761745848159,-151.0,0.0001988,7]
[392613649,1761745848168,-199.703718,0.0001988,7]
[392613650,1761745848178,-151.0,0.0001988,7]
[392613651,1761745848187,-151.0,0.0001988,7]
[392613652,1761745848198,-256.170223,0.0001988,7]
[392613653,1761745848208,-256.170223,0.0001988,7]
[392613654,1761745848217,-256.170223,0.0001988,7]
[392613655,1761745848227,-256.170223,0.0001988,7]
[392613656,1761745848236,-250.08768,0.0001988,7]
[392613657,1761745848245,-250.08768,0.0001988,7]
[392613658,1761745848254,-151.0,0.0001988,7]
[392613659,1761745848263,-250.08768,0.0001988,7]
[392613660,1761745848273,-151.0,0.0001988,7]
[392613661,1761745848282,-176.51223691,0.000199,2]
[392613663,1761745848291,-150.0,0.00019904,2]
[392613664,1761745848301,-1425.0,0.00019911,2]
[392613666,1761745848310,-152.0,0.00019918,2]
[392613668,1761745848319,-152.0,0.00019918,2]
[392613670,1761745848327,-152.0,0.00019918,2]
[392613672,1761745848337,-152.0,0.00019918,2]
[392613674,1761745848346,-152.0,0.00019918,2]
[392613676,1761745848356,-152.0,0.00019918,2]
[392613678,1761745848365,-152.0,0.00019918,2]
[392613680,1761745848374,-152.0,0.00019918,2]
[392613682,1761745848383,-152.0,0.00019918,2]
[392613684,1761745848392,-152.0,0.00019918,2]
[392613686,1761745848402,-152.0,0.00019918,2]
[392613688,1761745848411,-152.0,0.00019918,2]
[392613690,1761745848421,-152.0,0.00019918,2]
[392613692,1761745848430,-160.27549552,0.00019918,2]
[392613694,1761745848439,-156.205098,0.00019918,7]
[392613696,1761745848449,-1000.0,0.00019968,2]
[392613698,1761745848458,-1009.68060792,0.00019968,2]
[392613700,1761745848467,-1000.0,0.0001997,2]
[392613702,1761745848476,-354.0,0.00019983,2]
[392613704,1761745848486,-8721.09095257,0.0002,2]
[392613706,1761745848495,-58006.0,0.0002,7]
[392613709,1761745848504,-186.219177,0.0002,7]
[392613711,1761745848514,-151.0,0.0002,7]
[392613712,1761745848523,-151.0,0.0002,7]
[392613715,1761745848532,-186.219177,0.0002,7]
[392613717,1761745848542,-186.219177,0.0002,7]
[392613718,1761745848551,-151.0,0.0002,7]
[392613721,1761745848560,-186.219177,0.0002,7]
[392613723,1761745848570,-151.0,0.0002,7]
[392613725,1761745848579,-151.0,0.0002,7]
[392613727,1761745848588,-151.0,0.0002,7]
[392613729,1761745848597,-291.24,0.00020026,2]
[392613730,1761745848607,-1000.0,0.00020031,2]
[392613733,1761745848616,-1000.0,0.00020031,2]
[392613735,1761745848626,-1000.0,0.00020031,2]
[392613737,1761745848635,-1000.0,0.00020031,2]
[392613739,1761745848644,-151.0,0.00020038,7]
[392613740,1761745848654,-151.0,0.00020038,7]
[392613743,1761745848663,-151.0,0.00020038,7]
[392613744,1761745848672,-151.0,0.00020038,7]
[392613747,1761745848682,-151.0,0.00020038,7]
[392613749,1761745848691,-151.0,0.00020038,7]
[392613750,1761745848701,-151.0,0.00020038,7]
[392613752,1761745848710,-151.0,0.00020038,7]
[392613754,1761745848719,-151.0,0.00020038,7]
[392613757,1761745848728,-151.0,0.00020038,7]
[392613758,1761745848737,-156.701179,0.00020038,7]
[392613760,1761745848747,-182.713429,0.00020038,7]
[392613762,1761745848756,-151.0,0.00020038,7]
[392613764,1761745848765,-151.0,0.00020038,7]
[392613766,1761745848774,-151.0,0.00020038,7]
[392613768,1761745848784,-151.0,0.00020038,7]
[392613770,1761745848792,-151.0,0.00020038,7]
[392613772,1761745848802,-151.0,0.00020038,7]
[392613774,1761745848811,-151.0,0.00020038,7]
[392613776,1761745848820,-151.0,0.00020038,7]
[392613778,1761745848830,-151.0,0.00020038,7]
[392613781,1761745848840,-288.041798,0.00020038,7]
[392613783,1761745848849,-288.041794,0.00020038,7]
[392613785,1761745848858,-1343.527261,0.00020038,7]
[392613786,1761745848867,-1343.527261,0.00020038,7]
[392613788,1761745848876,-151.0,0.00020038,7]
[392613790,1761745848884,-1343.527261,0.00020038,7]
[392613793,1761745848894,-1343.527269,0.00020038,7]
[392613794,1761745848905,-151.0,0.00020038,7]
[392613796,1761745848914,-151.0,0.00020038,7]
[392613799,1761745848923,-151.0,0.00020038,7]
[392613800,1761745848932,-157.241405,0.00020038,7]
[392613802,1761745848941,-209.650987,0.00020038,7]
[392613804,1761745848950,-211.896066,0.00020038,7]
[392613806,1761745848959,-211.896066,0.00020038,7]
[392613808,1761745848968,-211.896066,0.00020038,7]
[392613810,1761745848977,-151.0,0.00020038,7]
[392613812,1761745848987,-343.282875,0.00020038,7]
[392613814,1761745848995,-151.0,0.00020038,7]
[392613816,1761745849004,-343.282875,0.00020038,7]
[392613818,1761745849014,-211.896066,0.00020038,7]
[392613820,1761745849023,-343.282875,0.00020038,7]
[392613822,1761745849035,-343.282876,0.00020038,7]
[392613824,1761745849045,-151.0,0.00020038,7]
[392613827,1761745849058,-151.0,0.00020038,7]
[392613829,1761745849068,-151.0,0.00020038,7]
[392613831,1761745849078,-199.492645,0.00020038,7]
[392613833,1761745849087,-199.492645,0.00020038,7]
[392613835,1761745849096,-199.492645,0.00020038,7]
[392613837,1761745849105,-199.492649,0.00020038,7]
[392613839,1761745849115,-151.0,0.00020038,7]
[392613841,1761745849124,-151.0,0.00020038,7]
[392613843,1761745849134,-151.0,0.00020038,7]
[392613845,1761745849143,-151.0,0.00020038,7]
[392613847,1761745849152,-151.0,0.00020038,7]
[392613849,1761745849162,-151.0,0.00020038,7]
[392613851,1761745849171,-200.377156,0.00020038,7]
[392613853,1761745849180,-256.170223,0.00020038,7]
[392613855,1761745849190,-256.170223,0.00020038,7]
[392613857,1761745849198,-256.170223,0.00020038,7]
[392613859,1761745849207,-256.170221,0.00020038,7]
[392613861,1761745849216,-5303.39,0.00020038,2]
[392613863,1761745849226,-404.41,0.00020116,2]
[392613865,1761745849235,-246.55,0.00020187,2]
[392613867,1761745849244,-354.0,0.00020215,2]
[392613869,1761745849254,-227.31346671,0.0002033,2]
[392613871,1761745849263,-170.11,0.00020393,2]
[392613873,1761745849272,-169.48,0.00020406,2]
[392613875,1761745849281,-1006.78517503,0.00020516,2]
[392613877,1761745849290,-1428.92,0.00020548,2]
[392613878,1761745849299,-151.0,0.00020548,7]
[392613880,1761745849308,-178.625383,0.00020548,7]
[392613882,1761745849317,-1500.0,0.00020579,2]
[392613884,1761745849326,-201.11750228,0.00020579,2]
[392613886,1761745849335,-206.72908678,0.00020579,2]
[392613889,1761745849345,-331.05633537,0.00020579,2]
[392613890,1761745849354,-3303.16178831,0.000207,2]
[392613892,1761745849363,-162.69,0.00020773,2]
[392613895,1761745849372,-404.41,0.00020795,2]
[392613896,1761745849381,-208.26757326,0.00020879,2]
[392613898,1761745849391,-5310.25750872,0.000209,2]
[392613901,1761745849400,-350.0,0.00021,2]
[392613902,1761745849414,-2001.56371117,0.00021,2]
[392613905,1761745849423,-186.219177,0.00021011,7]
[392613907,1761745849432,-151.0,0.00021011,7]
[392613909,1761745849441,-155.201141,0.00021011,7]
[392613911,1761745849450,-186.219177,0.00021011,7]
[392613913,1761745849460,-186.219177,0.00021011,7]
[392613914,1761745849469,-151.0,0.00021011,7]
[392613916,1761745849478,-186.219173,0.00021011,7]
[392613918,1761745849488,-151.0,0.00021011,7]
[392613921,1761745849497,-151.0,0.00021011,7]
[392613922,1761745849507,-151.0,0.00021011,7]
[392613924,1761745849516,-500.0,0.00021032,2]
[392613926,1761745849525,-1532.23753929,0.00021127,2]
[392613928,1761745849535,-500.0,0.00021306,2]
[392613930,1761745849543,-1100.0,0.00021306,2]
[392613932,1761745849553,-3631.01,0.0002151,2]
[392613934,1761745849562,-170.09,0.00021564,2]
[392613937,1761745849572,-153.24,0.00021644,2]
[392613939,1761745849581,-851.85274305,0.00021647,2]
[392613940,1761745849590,-169.48,0.00021682,2]
[392613942,1761745849600,-291.24,0.00021847,2]
[392613944,1761745849609,-153.24,0.00021906,2]
[392613947,1761745849618,-500.0,0.00021917,2]
[392613949,1761745849628,-500.0,0.00021917,2]
[392613950,1761745849637,-500.0,0.00021917,2]
[392613952,1761745849647,-500.0,0.00021917,2]
[392613954,1761745849658,-500.0,0.00021917,2]
[392613956,1761745849667,-500.0,0.00021917,2]
[392613959,1761745849677,-500.0,0.00021917,2]
[392613960,1761745849686,-500.0,0.00021917,2]
[392613962,1761745849695,-500.0,0.00021917,2]
[392613965,1761745849705,-500.0,0.00021917,2]
[392613967,1761745849714,-500.0,0.00021917,2]
[392613968,1761745849723,-500.0,0.00021917,2]
[392613985,1761745849867,-500.0,0.00021917,2]
[392613987,1761745849877,-5000.0,0.00021918,2]
[392613989,1761745849886,-152.562521,0.00021918,7]
[392613991,1761745849896,-1000.0,0.00021967,2]
[392613993,1761745849907,-1000.0,0.00022,2]
[392613995,1761745849917,-1883.30286978,0.00022,2]
[392613997,1761745849929,-500.0,0.00022,3]
[392613999,1761745849938,-400.0,0.00022,3]
[392614001,1761745849947,-21842.2,0.00022,7]
[392614003,1761745849956,-151.0,0.00022,7]
[392614005,1761745849965,-151.0,0.00022,7]
[392614007,1761745849974,-156.747787,0.00022,7]
[392614009,1761745849984,-5310.25750872,0.000221,2]
[392614011,1761745849993,-500.0,0.00022128,2]
[392614013,1761745850001,-227.31346671,0.00022141,2]
[392614015,1761745850011,-153.24,0.00022167,2]
[392614017,1761745850020,-500.0,0.00022221,2]
[392614019,1761745850030,-3939.0,0.00022222,2]
[392614021,1761745850043,-290.0,0.00022257,2]
[392614023,1761745850053,-3939.0,0.00022274,2]
[392614025,1761745850062,-176.51223691,0.000224,2]
[392614027,1761745850071,-1100.0,0.00022402,2]
[392614028,1761745850082,-153.24,0.00022429,2]
[392614029,1761745850091,-170.11,0.00022536,2]
[392614030,1761745850100,-477.01541854,0.000226,2]
[392614031,1761745850110,-153.24,0.00022691,2]